fUSD/lending_fUSD_20250812
["ID","MTS","AMOUNT","RATE_DAILY","PERIOD"]
[378704446,1754967033471,-500.0,0.00044998,61]
[378704447,1754967033481,-514.6360768,0.00044998,61]
[378704448,1754967033491,-523.0,0.00045,7]
[378704449,1754967033501,-10000.0,0.00045,60]
[378704450,1754967033510,-561.16670461,0.00045,30]
[378704451,1754967033519,-2500.0,0.00045,120]
[378704452,1754967033529,-10000.0,0.00045,30]
[378704453,1754967033538,-10000.0,0.00045,120]
[378704454,1754967033548,-19539.91305842,0.00045,30]
[378704455,1754967037456,-468.1572737,0.00045,30]
[378704458,1754967037617,-335.99999998,0.00045,30]
[378704459,1754967037676,-704.27,0.00045,30]
[378704460,1754967037732,-6940.79349567,0.00045,30]
[378704475,1754967039829,-2964.39703811,0.00045,30]
[378704476,1754967039986,-11097.69968376,0.00045,30]
[378704480,1754967042960,-840.84743576,0.00045,30]
[378704489,1754967045522,-9682.0420146,0.00045,30]
[378704490,1754967045532,-9280.69465926,0.0004501,15]
[378704492,1754967256898,165.66,0.00013699,2]
[378704567,1754968121131,3685.92262406,0.00017137,2]
[378704573,1754968202713,1000.0,0.0002495,5]
[378704580,1754968231784,-205.96845152,0.000249,2]
[378704581,1754968231793,-266.60418027,0.00025001,5]
[378704582,1754968231942,-733.39581973,0.00025001,5]
[378704583,1754968231951,-888.0,0.0002545,3]
[378704584,1754968231961,-1200.0,0.00027389,2]
[378704585,1754968231970,-1000.0,0.0002739,5]
[378704586,1754968231980,-1000.0,0.0002739,5]
[378704587,1754968231989,-1000.0,0.0002739,5]
[378704588,1754968231999,-1776.0,0.0002769,3]
[378704589,1754968232015,-205.96845145,0.0002845,9]
[378704590,1754968232024,-1226.0,0.00030878,2]
[378704591,1754968232034,-1226.0,0.00031196,2]
[378704592,1754968232042,-1226.0,0.00031515,2]
[378704593,1754968232051,-843.0035059,0.00031766,2]
[378704594,1754968232061,-1226.0,0.00031833,2]
[378704595,1754968232070,-548.47214739,0.00031833,2]
[378704596,1754968232079,-205.96845145,0.00032,17]
[378704597,1754968232088,-1226.0,0.00032151,2]
[378704598,1754968232098,-1226.0,0.0003247,2]
[378704599,1754968232109,-1226.0,0.00032788,2]
[378704600,1754968232118,-3803.7788827,0.00035,7]
[378704601,1754968232127,-205.96845145,0.0003555,25]
[378704602,1754968232136,-280.0,0.000374,30]
[378704603,1754968232145,-154.59,0.00038292,2]
[378704604,1754968232154,-518.0,0.00038583,2]
[378704605,1754968232163,-205.96845145,0.000391,32]
[378704606,1754968232172,-441.16,0.00041028,2]
[378704607,1754968232181,-171.0,0.0004114,4]
[378704608,1754968232190,-391.0,0.0004114,30]
[378704609,1754968232199,-1000.0,0.00041285,120]
[378704610,1754968232208,-592.97,0.00041475,30]
[378704611,1754968232217,-1162.64,0.00041491,120]
[378704612,1754968232226,-643.01,0.00041557,2]
[378704613,1754968232236,-150.0,0.00041584,2]
[378704614,1754968232245,-1009.0,0.000416,7]
[378704615,1754968232254,-602.88,0.00041607,120]
[378704616,1754968232263,-6707.23,0.00041613,7]
[378704617,1754968232272,-614.01,0.00041613,2]
[378704618,1754968232282,-160.87,0.00041749,2]
[378704619,1754968232291,-200.0,0.000419,2]
[378704620,1754968232300,-170.0,0.00041918,7]
[378704621,1754968232309,-307.39,0.00042571,2]
[378704623,1754968232318,-205.96845145,0.0004265,40]
[378704625,1754968232328,-518.0,0.00042867,13]
[378704627,1754968232337,-3000.0,0.00043,120]
[378704630,1754968232346,-666.0,0.0004335,3]
[378704632,1754968232355,-5000.0,0.00043422,120]
[378704634,1754968232364,-2528.36363003,0.000435,120]
[378704638,1754968232384,-888.0,0.000254,3]
[378704640,1754968232393,-1776.0,0.0002764,3]
[378704642,1754968232402,-471.63636997,0.000435,120]
[378704644,1754968232411,-1000.0,0.00043563,2]
[378704646,1754968232420,-154.59,0.00043771,120]
[378704647,1754968232430,-1000.0,0.0004407,30]
[378704649,1754968232439,-178.054,0.00044071,69]
[378704651,1754968232447,-739.259,0.00044071,69]
[378704653,1754968232457,-3345.0,0.000445,120]
[378704655,1754968232465,-200.0,0.00044533,2]
[378704657,1754968232475,-200.0,0.00044533,2]
[378704659,1754968232485,-200.0,0.00044533,2]
[378704661,1754968232494,-200.0,0.00044533,2]
[378704663,1754968232503,-200.0,0.00044533,2]
[378704665,1754968232512,-200.0,0.00044533,2]
[378704667,1754968232521,-200.0,0.00044533,2]
[378704669,1754968232530,-200.0,0.00044533,2]
[378704671,1754968232539,-200.0,0.00044533,2]
[378704673,1754968232548,-200.0,0.00044533,2]
[378704675,1754968232557,-200.0,0.00044533,2]
[378704677,1754968232567,-200.0,0.00044533,2]
[378704679,1754968232576,-200.0,0.00044533,2]
[378704681,1754968232585,-200.0,0.00044533,2]
[378704683,1754968232595,-200.0,0.00044533,2]
[378704685,1754968232604,-200.0,0.00044533,2]
[378704687,1754968232613,-200.0,0.00044533,2]
[378704689,1754968232622,-200.0,0.00044533,2]
[378704691,1754968232631,-200.0,0.00044533,2]
[378704693,1754968232640,-200.0,0.00044533,2]
[378704695,1754968232649,-6936.62608292,0.0004456,2]
[378704698,1754968232660,-4380.53002011,0.0004456,2]
[378704717,1754968237850,-3009.83995658,0.0004456,2]
[378704718,1754968237863,-1000.0,0.0004456,2]
[378704757,1754968239777,-5409.26737523,0.0004456,2]
[378704758,1754968239788,-3228.30487844,0.00045,90]
[378704759,1754968239797,-2293.24468097,0.00045,120]
[378704762,1754968428362,152.0,0.00013699,2]
[378704830,1754968442349,1000.0,0.0002395,5]
[378704831,1754968442590,888.0,0.0002445,3]
[378704834,1754968683527,1000.0,0.000242,5]
[378704835,1754968684121,888.0,0.000247,3]
[378704840,1754968805341,1000.0,0.000242,5]
[378704841,1754968805428,1000.0,0.00022499,5]
[378704842,1754968805501,1000.0,0.00023999,5]
[378704843,1754968805573,888.0,0.00024199,3]
[378704845,1754968835952,30000.00639628,0.0002,2]
[378704846,1754968836184,888.0,0.000205,3]
[378704847,1754968836247,28.25160234,0.0002274,3]
[378704848,1754968836277,1747.74839766,0.0002274,3]
[378704859,1754969108394,5623.89978015,0.00019,2]
[378704860,1754969108457,47832.0,0.00019,2]
[378704861,1754969108495,23876.9188409,0.00019,2]
[378704868,1754969202319,168.21516129,0.00023845,46]
[378704870,1754969220966,25265.6191859,0.00024,5]
[378704885,1754969267761,22818.41725515,0.0002,5]
[378704886,1754969267785,50000.0,0.0002,5]
[378704887,1754969267810,50000.0,0.0002,5]
[378704888,1754969267835,41575.11915166,0.0002,5]
[378704889,1754969267988,888.0,0.000205,3]
[378704903,1754969403935,152.0,0.00013699,2]
[378704907,1754969432032,-150.0,0.00022,2]
[378704908,1754969432042,-1000.0,0.0002237,5]
[378704910,1754969432052,-214.07322665,0.00022738,2]
[378704911,1754969432097,-985.92677335,0.00022738,2]
[378704912,1754969432109,-500.0,0.00022739,2]
[378704913,1754969432118,-500.0,0.00022739,2]
[378704914,1754969432129,-500.0,0.00022739,2]
[378704915,1754969432138,-344.10152012,0.00022739,2]
[378704916,1754969432148,-500.0,0.00022739,2]
[378704917,1754969432157,-555.76822134,0.00022739,2]
[378704918,1754969432166,-1776.0,0.0002274,3]
[378704919,1754969432176,-1200.0,0.00022993,2]
[378704920,1754969432185,-5800.0,0.00023945,2]
[378704921,1754969432195,-1699.61801669,0.00024,2]
[378704922,1754969432204,-1000.0,0.000242,5]
[378704923,1754969432214,-1000.0,0.000242,5]
[378704924,1754969432223,-888.0,0.000245,3]
[378704925,1754969432233,-467.8374,0.000248,2]
[378704926,1754969432242,-402.74354531,0.000249,2]
[378704927,1754969432252,-402.74354507,0.00026124,4]
[378704928,1754969432261,-1776.0,0.0002674,3]
[378704929,1754969432270,-28577.93779439,0.00027074,2]
[378704930,1754969432279,-402.74354507,0.00027348,7]
[378704931,1754969432289,-402.74354507,0.00028572,10]
[378704932,1754969432298,-483.5843948,0.00029069,2]
[378704933,1754969432311,-402.74354507,0.00029797,12]
[378704934,1754969432320,-402.74354507,0.00031021,15]
[378704935,1754969432329,-402.74354507,0.00032245,18]
[378704936,1754969432339,-1000.0,0.00032705,2]
[378704937,1754969432348,-343.14,0.00032898,2]
[378704938,1754969432358,-5426.89748204,0.00033173,2]
[378704939,1754969432367,-402.74354507,0.00033469,20]
[378704940,1754969432377,-200.0,0.00034,30]
[378704941,1754969432386,-500.0,0.0003405,5]
[378704942,1754969432395,-506.62928472,0.00034598,5]
[378704943,1754969432404,-402.74354507,0.00034693,23]
[378704944,1754969432414,-317.07,0.00034881,2]
[378704945,1754969432423,-4295.61373694,0.00034943,2]
[378704946,1754969432432,-923.545,0.0003505,2]
[378704947,1754969432442,-292.31,0.00035499,2]
[378704948,1754969432451,-552.64,0.00035571,30]
[378704949,1754969432460,-402.74354507,0.00035917,25]
[378704951,1754969432470,-58282.15663561,0.00036069,2]
[378704953,1754969432479,-500.0,0.00036073,5]
[378704956,1754969432488,-269.86339062,0.00036073,5]
[378704959,1754969432498,-400.81437565,0.00036073,3]
[378704961,1754969432507,-500.0,0.00036073,5]
[378704963,1754969432517,-5000.0,0.00036257,2]
[378704965,1754969432527,-231.02408737,0.00036799,15]
[378704968,1754969432539,-500.0,0.00036873,5]
[378704971,1754969432549,-12592.11387497,0.00036879,120]
[378704972,1754969432559,-591.407,0.00036879,46]
[378704973,1754969432569,-8553.11771803,0.000369,2]
[378704974,1754969432580,-18190.37787201,0.00037041,2]
[378704975,1754969432591,-402.74354507,0.00037141,28]
[378704976,1754969432602,-830.66,0.00037227,2]
[378704977,1754969432613,-150.0,0.00037231,2]
[378704978,1754969432623,-666.0,0.00037261,3]
[378704979,1754969432636,-242.67,0.00037354,2]
[378704980,1754969432647,-280.0,0.000374,30]
[378704981,1754969432656,-833.99,0.00037546,2]
[378704982,1754969432666,-833.99,0.00037565,2]
[378704983,1754969432676,-833.99,0.00037585,2]
[378704984,1754969432685,-833.99,0.00037605,2]
[378704985,1754969432694,-833.99,0.00037625,2]
[378704986,1754969432704,-833.99,0.00037644,2]
[378704987,1754969432713,-833.99,0.00037664,2]
[378704988,1754969432722,-833.99,0.00037684,2]
[378704989,1754969432732,-356.19,0.00037693,120]
[378704990,1754969432742,-833.99,0.00037704,2]
[378704991,1754969432751,-833.99,0.00037723,2]
[378704992,1754969432760,-833.99,0.00037743,2]
[378704993,1754969432770,-515.19475266,0.00037763,2]
[378704994,1754969432914,-318.79524734,0.00037763,2]
[378704995,1754969432924,-1000.0,0.0003777,2]
[378704996,1754969432934,-833.99,0.00037783,2]
[378704997,1754969432943,-833.99,0.00037802,2]
[378704998,1754969432954,-833.99,0.00037822,2]
[378704999,1754969432963,-833.99,0.00037842,2]
[378705000,1754969432972,-833.99,0.00037862,2]
[378705001,1754969432981,-833.99,0.00037881,2]
[378705002,1754969432990,-150.0,0.00037901,2]
[378705003,1754969433000,-154.52985416,0.00037901,2]
[378705004,1754969433009,-154.54091241,0.00037901,2]
[378705005,1754969433019,-150.0,0.00037901,2]
[378705006,1754969433028,-833.99,0.00037901,2]
[378705007,1754969433037,-833.99,0.00037921,2]
[378705008,1754969433048,-18190.37787198,0.00038025,2]
[378705009,1754969433057,-150.0,0.00038175,2]
[378705010,1754969433066,-150.0,0.00038175,2]
[378705011,1754969433075,-154.59,0.00038293,2]
[378705012,1754969433085,-402.74354507,0.00038366,31]
[378705013,1754969433094,-207.80590094,0.00038449,2]
[378705014,1754969433104,-150.0,0.00038449,2]
[378705015,1754969433114,-265.88556046,0.00038723,2]
[378705016,1754969433123,-242.67,0.00038755,2]
[378705017,1754969433132,-231.02408736,0.00038921,15]
[378705018,1754969433142,-18190.37787198,0.0003901,2]
[378705019,1754969433151,-402.74354507,0.0003959,33]
[378705020,1754969433160,-1000.0,0.00039791,2]
[378705021,1754969433169,-151.0,0.00039791,14]
[378705022,1754969433179,-151.0,0.00039791,14]
[378705023,1754969433188,-212.732668,0.00039791,14]
[378705024,1754969433197,-198.575609,0.00039791,14]
[378705025,1754969433207,-198.575609,0.00039791,14]
[378705026,1754969433216,-261.97,0.00039928,2]
[378705027,1754969433225,-18190.37787198,0.00039994,15]
[378705028,1754969433235,-10429.94,0.00040044,2]
[378705029,1754969433245,-2781.45,0.00040044,2]
[378705030,1754969433255,-242.67,0.00040156,2]
[378705031,1754969433264,-402.74354507,0.00040814,36]
[378705032,1754969433273,-18190.37787198,0.00040978,15]
[378705033,1754969433282,-231.02408736,0.00041044,15]
[378705034,1754969433292,-391.0,0.0004114,30]
[378705035,1754969433302,-242.67,0.00041556,2]
[378705036,1754969433314,-552.64,0.00041795,120]
[378705037,1754969433323,-18190.37787198,0.00041963,15]
[378705038,1754969433333,-402.74354507,0.00042038,39]
[378705039,1754969433342,-5843.15918956,0.00042491,15]
[378705040,1754969433352,-3211.71730712,0.00042491,14]
[378705041,1754969433361,-499.97589306,0.00042573,10]
[378705042,1754969433370,-500.0,0.00042573,10]
[378705043,1754969433379,-503.60571395,0.00042573,10]
[378705044,1754969433390,-505.88320916,0.00042573,10]
[378705045,1754969433399,-504.07549134,0.00042573,2]
[378705046,1754969433409,-510.56550942,0.00042573,10]
[378705047,1754969433418,-77682.05528591,0.00042591,2]
[378705048,1754969433438,-539.666339,0.00042591,2]
[378705049,1754969433450,-1099.65424976,0.00042591,2]
[378705050,1754969433461,-693.10460756,0.00042591,2]
[378705051,1754969433473,-366409.48384427,0.00042591,2]
[378705052,1754969433482,-18514.47048049,0.00042591,2]
[378705053,1754969433491,-156.824072,0.00042591,14]
[378705054,1754969433500,-151.0,0.00042591,14]
[378705055,1754969433509,-151.0,0.00042591,14]
[378705056,1754969433518,-151260.79587626,0.00042591,3]
[378705057,1754969433530,-274.73006917,0.00042591,3]
[378705058,1754969433542,-7798.06457616,0.00042591,3]
[378705059,1754969433555,-1351.2600005,0.00042591,3]
[378705060,1754969433567,-1081.62114788,0.00042591,3]
[378705061,1754969433794,250.0,0.00015,2]
[378705065,1754969437820,-888.0,0.000225,3]
[378705066,1754969437830,-228.41869126,0.00022737,2]
[378705067,1754969437839,-205.80393248,0.00022739,2]
[378705068,1754969437849,-1776.0,0.0002474,3]
[378705069,1754969437858,-888.0,0.00038525,3]
[378705070,1754969437867,-151.57053194,0.00039726,15]
[378705071,1754969437877,-286.46999294,0.00039726,15]
[378705072,1754969437886,-1776.0,0.00040765,3]
[378705073,1754969437896,-1083.50504403,0.00042591,3]
[378705074,1754969437905,-12340.9870014,0.00042591,3]
[378705075,1754969437915,-14804.5433376,0.00042592,3]
[378705076,1754969437924,-151.0,0.00042592,14]
[378705077,1754969437933,-167.204497,0.00042592,14]
[378705078,1754969437942,-151.802215,0.00042601,14]
[378705079,1754969437951,-200.0,0.00042602,2]
[378705080,1754969437960,-200.0,0.00042602,2]
[378705081,1754969437969,-200.0,0.00042602,2]
[378705082,1754969437978,-200.0,0.00042602,2]
[378705083,1754969437987,-200.0,0.00042602,2]
[378705084,1754969437996,-200.0,0.00042602,2]
[378705085,1754969438006,-200.0,0.00042602,2]
[378705086,1754969438017,-200.0,0.00042602,2]
[378705087,1754969438026,-200.0,0.00042602,2]
[378705088,1754969438035,-200.0,0.00042602,2]
[378705089,1754969438044,-200.0,0.00042602,2]
[378705090,1754969438054,-200.0,0.00042602,2]
[378705091,1754969438064,-200.0,0.00042602,2]
[378705092,1754969438073,-200.0,0.00042602,2]
[378705093,1754969438082,-200.0,0.00042602,2]
[378705094,1754969438090,-200.0,0.00042602,2]
[378705095,1754969438100,-200.0,0.00042602,2]
[378705096,1754969438109,-200.0,0.00042602,2]
[378705097,1754969438119,-200.0,0.00042602,2]
[378705098,1754969438128,-200.0,0.00042602,2]
[378705099,1754969438138,-5843.15918952,0.0004287,15]
[378705100,1754969438147,-18190.37787198,0.00042947,15]
[378705101,1754969438156,-242.67,0.00042957,2]
[378705102,1754969438166,-231.02408736,0.00043166,15]
[378705103,1754969438175,-5843.15918952,0.00043249,15]
[378705104,1754969438183,-402.74354507,0.00043262,41]
[378705105,1754969438193,-3000.0,0.000435,120]
[378705106,1754969438201,-5843.15918952,0.00043627,15]
[378705107,1754969438211,-2500.0,0.00043789,2]
[378705109,1754969438219,-232.75311443,0.00043835,120]
[378705111,1754969438228,-476.33,0.00043835,120]
[378705112,1754969438239,-400.0,0.00043835,120]
[378705113,1754969438248,-400.0,0.00043835,120]
[378705114,1754969438258,-400.0,0.00043835,120]
[378705115,1754969438266,-815.68,0.00043835,120]
[378705116,1754969438275,-400.0,0.00043835,120]
[378705117,1754969438284,-500.0,0.00043835,120]
[378705118,1754969438294,-500.0,0.00043835,120]
[378705119,1754969438305,-400.0,0.00043835,120]
[378705120,1754969438316,-400.0,0.00043835,120]
[378705121,1754969438325,-586.76,0.00043835,120]
[378705122,1754969438334,-611.66,0.00043835,120]
[378705123,1754969438343,-1958.98,0.00043835,120]
[378705124,1754969438353,-400.0,0.00043835,120]
[378705125,1754969438362,-400.0,0.00043835,120]
[378705126,1754969438371,-400.0,0.00043835,120]
[378705127,1754969438380,-401.62562906,0.00043835,2]
[378705128,1754969438390,-318.1603282,0.00043835,120]
[378705129,1754969438399,-405.67881623,0.00043835,120]
[378705130,1754969438409,-402.12548481,0.00043835,120]
[378705131,1754969438418,-400.0,0.00043835,120]
[378705132,1754969438427,-454.97041186,0.00043835,120]
[378705133,1754969438436,-424.16289201,0.00043835,120]
[378705134,1754969438446,-400.0,0.00043835,120]
[378705135,1754969438455,-400.0,0.00043835,120]
[378705136,1754969438465,-406.07865688,0.00043835,120]
[378705137,1754969438475,-400.0,0.00043835,120]
[378705138,1754969438484,-400.0,0.00043835,120]
[378705139,1754969438493,-410.87239592,0.00043835,120]
[378705140,1754969438502,-400.0,0.00043835,120]
[378705141,1754969438511,-402.80335283,0.00043835,120]
[378705142,1754969438520,-400.0,0.00043835,120]
[378705143,1754969438529,-402.97637234,0.00043835,120]
[378705144,1754969438538,-400.0,0.00043835,120]
[378705145,1754969438547,-400.0,0.00043835,120]
[378705146,1754969438556,-403.76640009,0.00043835,120]
[378705147,1754969438566,-1632.14,0.00043835,120]
[378705148,1754969438575,-400.0,0.00043835,120]
[378705149,1754969438583,-402.18560154,0.00043835,120]
[378705150,1754969438593,-400.0,0.00043835,120]
[378705151,1754969438602,-400.0,0.00043835,120]
[378705152,1754969438611,-400.0,0.00043835,120]
[378705153,1754969438621,-400.0,0.00043835,120]
[378705154,1754969438630,-404.48128631,0.00043835,120]
[378705155,1754969438639,-400.0,0.00043835,120]
[378705156,1754969438649,-400.0,0.00043835,120]
[378705157,1754969438659,-400.0,0.00043835,120]
[378705158,1754969438668,-454.41072758,0.00043868,3]
[378705159,1754969438681,-1070.1499975,0.00043868,3]
[378705160,1754969438692,-750.78902854,0.00043868,3]
[378705161,1754969438708,-809.89699673,0.00043868,3]
[378705162,1754969438717,-2202.76297167,0.00043878,120]
[378705163,1754969438729,-4882.81872833,0.00043878,120]
[378705164,1754969438738,-284.955476,0.00043889,14]
[378705165,1754969438747,-168.966705,0.00043889,14]
[378705166,1754969438756,-198.575609,0.00043889,14]
[378705167,1754969438766,-198.575609,0.00043889,14]
[378705168,1754969438775,-151.0,0.00043889,14]
[378705169,1754969438785,-1070.15,0.00043889,2]
[378705171,1754969438795,-297.5981,0.00043889,2]
[378705172,1754969438804,-6754.88757267,0.00043931,15]
[378705175,1754969438816,-880.85621006,0.00043931,15]
[378705177,1754969438828,-1355.882,0.00043931,15]
[378705180,1754969438843,-400.0,0.00043835,120]
[378705182,1754969438852,-79.02547716,0.00043931,15]
[378705184,1754969438864,-1691.14724726,0.00043931,15]
[378705187,1754969438884,-888.0,0.00023,3]
[378705189,1754969438894,-400.0,0.00043835,120]
[378705191,1754969438903,-1674.55749776,0.00043931,15]
[378705193,1754969438915,-2924.29140406,0.00043931,15]
[378705208,1754969439903,-888.0,0.000235,3]
[378705209,1754969439913,-458.3261508,0.0002524,3]
[378705210,1754969439924,-1317.6738492,0.0002524,3]
[378705211,1754969439933,-1776.0,0.0002574,3]
[378705212,1754969439943,-2829.73046301,0.00043931,15]
[378705213,1754969439952,-1799.62282582,0.00043963,3]
[378705214,1754969440117,-298.1,0.00043963,3]
[378705215,1754969440171,-888.0,0.0002574,3]
[378705216,1754969440181,-987.52392453,0.00043963,3]
[378705217,1754969440191,-264.449048,0.00043968,14]
[378705218,1754969440200,-14804.5433376,0.00043968,3]
[378705219,1754969440209,-74022.7166882,0.00043969,3]
[378705220,1754969440217,-33937.7142539,0.00043969,3]
[378705221,1754969440227,-14804.5433376,0.00043969,3]
[378705222,1754969440235,-588.61276604,0.00043969,3]
[378705227,1754969443051,-1776.0,0.0002798,3]
[378705228,1754969443061,-400.0,0.00043835,120]
[378705229,1754969443069,-400.0,0.00043835,120]
[378705230,1754969443079,-400.0,0.00043835,120]
[378705231,1754969443087,-400.0,0.00043835,120]
[378705232,1754969443097,-409.74682507,0.00043835,120]
[378705233,1754969443106,-400.0,0.00043835,120]
[378705234,1754969443115,-5581.88073466,0.00043969,3]
[378705235,1754969443124,-339.80599907,0.00043969,7]
[378705236,1754969443133,-169.23,0.0004397,2]
[378705237,1754969443142,-152.471437,0.00043973,14]
[378705238,1754969443151,-151.560114,0.00043973,14]
[378705239,1754969443160,-419.32,0.00043978,120]
[378705240,1754969443169,-400.0,0.00043978,120]
[378705241,1754969443178,-400.0,0.00043978,120]
[378705242,1754969443187,-400.0,0.00043978,120]
[378705243,1754969443196,-456.31,0.00043978,120]
[378705244,1754969443205,-175.92265596,0.00043978,120]
[378705245,1754969443214,-400.0,0.00043978,118]
[378705246,1754969443223,-400.0,0.00043978,120]
[378705247,1754969443231,-400.0,0.00043978,120]
[378705248,1754969443240,-400.0,0.00043978,120]
[378705249,1754969443249,-400.0,0.00043978,120]
[378705250,1754969443258,-400.0,0.00043978,120]
[378705251,1754969443266,-400.0,0.00043978,120]
[378705252,1754969443275,-500.0,0.00043978,120]
[378705253,1754969443284,-500.0,0.00043978,120]
[378705254,1754969443293,-500.0,0.00043978,120]
[378705255,1754969443303,-400.0,0.00043978,120]
[378705256,1754969443316,-400.0,0.00043978,120]
[378705257,1754969443325,-400.0,0.00043978,120]
[378705258,1754969443334,-500.0,0.00043978,120]
[378705259,1754969443343,-400.0,0.00043978,120]
[378705260,1754969443352,-355.12942403,0.00043978,120]
[378705261,1754969443362,-198.575609,0.00043979,14]
[378705262,1754969443371,-198.575609,0.00043979,14]
[378705263,1754969443380,-44413.6300129,0.00043979,3]
[378705264,1754969443389,-18511.4805021,0.00043979,3]
[378705265,1754969443398,-38016.19438112,0.0004398,3]
[378705266,1754969443413,-995.44712382,0.0004398,3]
[378705287,1754969448146,-888.0,0.0002848,3]
[378705288,1754969448156,-1776.0,0.0003072,3]
[378705289,1754969448165,-400.0,0.00043835,120]
[378705290,1754969448174,-389.94651218,0.00043835,120]
[378705318,1754970465209,152.0,0.00013699,2]
[378705324,1754970632239,-249.824924,0.00024,2]
[378705325,1754970632249,-1000.0,0.0002445,5]
[378705326,1754970632259,-201.37177267,0.000249,2]
[378705327,1754970632268,-1000.0,0.00025583,5]
[378705328,1754970632278,-201.37177253,0.00026215,5]
[378705329,1754970632287,-1000.0,0.000264,5]
[378705330,1754970632296,-1000.0,0.000264,5]
[378705331,1754970632305,-300.0,0.000264,2]
[378705332,1754970632315,-201.37177253,0.0002753,7]
[378705333,1754970632324,-201.37177253,0.00028844,10]
[378705334,1754970632333,-831.25,0.00030159,2]
[378705335,1754970632342,-201.37177253,0.00030159,13]
[378705336,1754970632351,-185.19,0.0003103,2]
[378705337,1754970632360,-201.37177253,0.00031474,16]
[378705338,1754970632369,-201.37177253,0.00032789,19]
[378705339,1754970632377,-212.83282464,0.00032877,7]
[378705340,1754970632387,-154.6,0.00033279,2]
[378705341,1754970632553,-201.37177253,0.00034104,22]
[378705342,1754970632563,-201.37177253,0.00035419,24]
[378705343,1754970632572,-443.0,0.00035678,5]
[378705344,1754970632581,-1128.0,0.00036436,20]
[378705345,1754970632590,-201.37177253,0.00036733,27]
[378705346,1754970632599,-1128.0,0.00036812,20]
[378705347,1754970632609,-749.50504047,0.00036886,2]
[378705348,1754970632618,-1128.0,0.00037188,20]
[378705349,1754970632627,-280.0,0.000374,30]
[378705350,1754970632637,-1128.0,0.00037563,20]
[378705351,1754970632646,-850.4439466,0.00037711,2]
[378705352,1754970632655,-850.4439466,0.00037922,2]
[378705353,1754970632669,-1128.0,0.00037939,20]
[378705355,1754970632678,-201.37177253,0.00038048,30]
[378705357,1754970632687,-3158.97,0.00038131,34]
[378705359,1754970632696,-9596.54853489,0.0003826,2]
[378705361,1754970632709,-13862.10146511,0.0003826,2]
[378705363,1754970632719,-850.4439466,0.00038295,2]
[378705365,1754970632728,-1128.0,0.00038315,20]
[378705366,1754970632738,-1000.0,0.00038319,2]
[378705367,1754970632748,-2781.45,0.00038319,2]
[378705368,1754970632757,-850.4439466,0.00038499,2]
[378705369,1754970632766,-8841.62,0.00038622,2]
[378705370,1754970632775,-850.4439466,0.0003864,2]
[378705371,1754970632784,-1128.0,0.0003869,20]
[378705372,1754970632793,-3100.49,0.00038734,2]
[378705373,1754970632802,-681.488,0.00038837,53]
[378705374,1754970632811,-1724.93,0.00038883,7]
[378705375,1754970632820,-460.53,0.00038918,120]
[378705376,1754970632829,-175.76,0.00038928,2]
[378705377,1754970632838,-298.67,0.00039068,120]
[378705378,1754970632847,-850.4439466,0.00039096,2]
[378705379,1754970632858,-5000.0,0.00039106,120]
[378705380,1754970632867,-150.0,0.00039263,2]
[378705381,1754970632877,-201.37177253,0.00039363,33]
[378705382,1754970632886,-850.4439466,0.0003943,2]
[378705383,1754970632895,-850.4439466,0.00039531,2]
[378705384,1754970632904,-1067.18498611,0.000396,2]
[378705385,1754970632913,-500.34691618,0.0003965,5]